[Event "Hungarian Youth-ch U18 2022"]
[Site "Eger"]
[Date "2022.07.29"]
[Round "7.7"]
[White "Juhasz, Judit"]
[Black "Buri, Kata"]
[Result "1-0"]
[ECO "B12"]
[WhiteElo "2037"]
[BlackElo "1730"]
[Annotator "TA"]
[PlyCount "59"]
[EventDate "2022.07.21"]
[EventType "tourn"]
[EventCountry "HUN"]
[SourceTitle "playchess.com"]
[Source "ChessBase"]
[SourceQuality "1"]
[TimeControl "40/5400+30:1800+30"]

{[%evp 9,59,15,33,33,27,23,25,35,29,27,37,-9,-8,-40,-29,-26,-22,-19,-32,-37,-22,-64,83,79,83,0,10,0,20,-12,0,0,12,0,71,56,128,120,218,204,269,268,830,274,1181,1177,1162,1104,1530,1527,1445,1194]} 1. e4 {[%emt 0:05:23]} c6 {[%emt 0:00:42]} 2. d4 {[%emt 0:00:16]} d5 {[%emt 0:00:06]} 3. e5 {[%emt 0:00:05]} Bf5 {[%emt 0:01:17]} 4. h4 {[%emt 0:00:06]} Qc7 {[%emt 0:00:29]} 5. Nc3 {[%emt 0:02:17]} h6 {[%emt 0:03:13] [#]} 6. h5 $146 {[%emt 0:07:40] B12: Caro-Kann: Advance Variation.} ({Predecessor:} 6. g4 Bh7 7. e6 fxe6 8. f4 e5 9. fxe5 e6 10. Bd3 Bxd3 11. Qxd3 Na6 12. a3 {1-0 (41) Sevian,S (2585)-Shimanov,A (2642) Saint Louis 2017}) 6... e6 {[%emt 0:01:02]} 7. g4 {[%emt 0:01:05]} Bh7 {[%emt 0:00:08]} 8. Bd3 {[%emt 0:00:11] White has an edge.} Bxd3 {[%emt 0:01:43]} 9. Qxd3 {[%emt 0:00:09]} a6 {[%emt 0:00:09]} 10. Bf4 {[%emt 0:01:22]} (10. Be3 $14) 10... c5 $11 {[%emt 0:00:58]} 11. dxc5 {[%emt 0:06:58]} Bxc5 {[%emt 0:00:21]} 12. Bg3 {[%emt 0:01:52]} Nc6 {[%emt 0:01:21]} 13. Nf3 {[%emt 0:00:53]} Nge7 {[%emt 0:04:54]} 14. a3 {[%emt 0:02:45]} Bb6 {[%emt 0:05:47]} 15. Kf1 {[%emt 0:04:25]} g6 {[%emt 0:02:29]} (15... Rc8 $15 {stays ahead.}) 16. hxg6 $16 {[%emt 0:02:30]} Nxg6 {[%emt 0:01:10] [#]} 17. Re1 {[%emt 0:02:36]} ({Better is} 17. Nxd5 $1 $16 exd5 18. e6) 17... O-O-O {[%emt 0:03:16]} 18. b4 $1 {[%emt 0:01:29]} Nce7 {[%emt 0:07:26]} 19. Nd2 {[%emt 0:01:12]} Nc6 {[%emt 0:03:46][%cal Rc6e5]} 20. Nf3 {[%emt 0:12:32]} Nce7 {[%emt 0:08:58]} 21. Rh5 {[%emt 0:05:18]} Qc6 {[%emt 0:04:44]} (21... Kb8 $11 {keeps the balance.}) 22. b5 {[%emt 0:03:09] White is more active.} axb5 {[%emt 0:01:50]} (22... Qc5 $14 23. Na4 (23. bxa6 $2 Nf4 $19) 23... Qxb5 24. Qxb5 axb5 25. Nxb6+ Kc7) 23. Nxb5 {[%emt 0:00:27] And now Nd6+ would win.} Rdf8 {[%emt 0:01:13]} (23... Kb8 $16 {is a better defense.} 24. Rb1 Rd7) 24. Nd6+ {[%emt 0:03:28]} Kb8 {[%emt 0:00:33]} 25. Rb1 {[%emt 0:01:16]} f5 $2 {[%emt 0:00:50]} (25... Nc8 26. Nd4 Qc7) 26. Nd4 $2 {[%emt 0:00:18]} (26. exf6 Rxf6 {[#]} 27. Rxb6 $1 {[%mdl 512]} Qxb6 28. Nc4+ Qc7 29. Bxc7+ Kxc7 30. Nce5 Nxe5 31. Nxe5) 26... Qc5 {[%emt 0:01:00]} (26... Bxd4 27. Qxd4 (27. Rxb7+ Ka8 $18) 27... Qa6+ 28. Kg2 Ka8) 27. Nxe6 $18 {[%emt 0:00:37] White is clearly winning.} Qc6 {[%emt 0:02:15]} 28. Nxf8 {[%emt 0:00:40]} Rxf8 {[%emt 0:02:48]} 29. gxf5 {[%emt 0:00:37]} Qc5 {[%emt 0:00:25]} 30. Qb5 {[%emt 0:01:02] Weighted Error Value: White=0.38/Black=0.35} 1-0

[Event "Hungarian Youth-ch U18 2022"]
[Site "Eger"]
[Date "2022.07.30"]
[Round "8.1"]
[White "Juhasz, Agoston"]
[Black "Reviczki, Roland"]
[Result "1-0"]
[ECO "C10"]
[WhiteElo "2344"]
[BlackElo "2160"]
[Annotator "TA"]
[PlyCount "107"]
[EventDate "2022.07.21"]
[EventType "tourn"]
[EventCountry "HUN"]
[SourceTitle "playchess.com"]
[Source "ChessBase"]
[SourceQuality "1"]
[TimeControl "40/5400+30:1800+30"]

{[%evp 9,107,36,59,11,15,18,11,22,19,11,23,13,24,0,0,0,0,0,26,0,0,3,16,15,20,0,26,45,34,0,29,22,9,0,2,0,73,74,114,114,98,110,167,160,168,153,166,152,166,152,166,125,122,76,71,48,66,67,80,80,86,87,87,87,195,216,193,235,400,397,360,383,370,391,393,393,317,303,372,366,1232,1324,1847,1753,1607,1718,1662,1387,1357,1199,6610,6087,5673,2652,29967,29968,5501,11114,5509,5439]} 1. e4 {[%emt 0:02:13]} e6 {[%emt 0:00:40]} 2. d4 {[%emt 0:00:35]} d5 {[%emt 0:00:05]} 3. Nc3 {[%emt 0:01:57]} Nc6 {[%emt 0:00:10]} 4. e5 {[%emt 0:02:09]} f6 {[%emt 0:00:10]} 5. Nf3 {[%emt 0:05:13]} Bd7 {[%emt 0:00:23]} 6. Bf4 {[%emt 0:03:02] C10: French with 3 Nc3: Unusual Black 3rd moves and 3...dxe4.} (6. Bd3 $14) 6... fxe5 $11 {[%emt 0:06:43] [#]} 7. dxe5 $146 {[%emt 0:08:00]} ({Predecessor:} 7. Bxe5 Nxe5 8. Nxe5 Nf6 9. Bd3 Bd6 10. Qf3 Qe7 11. Bg6+ Kf8 12. Bd3 c5 13. Nxd7+ Qxd7 14. dxc5 Bxc5 {1-0 (41) Weber,B (1725)-Boehme,R (1974) Leipzig 2012}) 7... Qe7 {[%emt 0:02:01]} 8. Qd2 {[%emt 0:07:44] The position is equal.} h6 {[%emt 0:01:58]} 9. h4 {[%emt 0:16:17] Inhibits g5.} g6 {[%emt 0:04:53]} 10. Bd3 {[%emt 0:08:32]} Qf7 {[%emt 0:01:40]} 11. h5 {[%emt 0:02:42]} Nge7 {[%emt 0:12:31]} 12. hxg6 {[%emt 0:10:52]} Nxg6 {[%emt 0:00:48]} 13. Bg3 {[%emt 0:00:37]} Bg7 {[%emt 0:04:52][%cal Rc6e5]} 14. Bxg6 {[%emt 0:04:52]} Qxg6 {[%emt 0:00:12]} 15. Ne2 {[%emt 0:00:09]} O-O-O {[%emt 0:10:54]} 16. O-O-O {[%emt 0:03:35]} h5 {[%emt 0:14:20]} 17. Nf4 {[%emt 0:01:33]} Qg4 {[%emt 0:03:58]} 18. Rh4 {[%emt 0:01:16]} Qf5 {[%emt 0:00:06]} 19. Nd3 {[%emt 0:00:58]} (19. Rdh1 {is interesting.} Nxe5 20. Nxe5 Bxe5 21. Ng6) 19... Kb8 {[%emt 0:04:31]} 20. Kb1 {[%emt 0:00:33]} b6 {[%emt 0:02:59]} 21. Rdh1 {[%emt 0:00:50]} Rdg8 {[%emt 0:12:42]} 22. Qg5 {[%emt 0:03:20]} Qf7 {[%emt 0:07:06]} (22... Qf8 $11) 23. Rxh5 $16 {[%emt 0:02:56] White is more active.} Ne7 {[%emt 0:04:38]} 24. Rxh8 {[%emt 0:04:08]} Bxh8 {[%emt 0:00:07]} 25. Qh5 {[%emt 0:00:59]} Ng6 {[%emt 0:00:57] [#]} (25... Qf8 $16 {is a better defense.}) 26. Nf4 $1 $18 {[%emt 0:01:52][%mdl 512]} Be8 {[%emt 0:00:18] [#]} 27. Nxg6 $1 {[%emt 0:03:15]} Qxg6 {[%emt 0:00:07]} 28. Qxg6 {[%emt 0:00:11]} Bxg6 {[%emt 0:00:06]} 29. Nd4 {[%emt 0:00:28] Hoping for Nc6+.} Bf7 {[%emt 0:00:44]} 30. Rh7 {[%emt 0:00:31]} Bg7 {[%emt 0:00:30]} 31. Kc1 {[%emt 0:02:34]} (31. b4 $142 {aiming for Nc6+.} Kc8 32. b5) 31... Kc8 $16 {[%emt 0:00:40]} 32. b4 {[%emt 0:01:51]} a6 {[%emt 0:00:56]} 33. a4 {[%emt 0:00:26][%cal Ba2a4,Ba4b5][%mdl 32]} Kd7 {[%emt 0:03:13] Black is on the road to losing.} 34. b5 {[%emt 0:00:04]} axb5 {[%emt 0:00:08]} 35. axb5 {[%emt 0:00:05]} Bg6 {[%emt 0:00:24]} 36. Rh4 {[%emt 0:00:15]} Ra8 {[%emt 0:00:24]} (36... Bf8 $16 {keeps fighting.}) 37. Rg4 $18 {[%emt 0:01:15]} Bh6+ {[%emt 0:00:12] [#]} 38. Bf4 $1 {[%emt 0:00:38]} Bh5 $2 {[%emt 0:00:07]} (38... Bf5 {might work better.}) 39. Rh4 {[%emt 0:00:20]} Bxf4+ {[%emt 0:00:09]} 40. Rxf4 {[%emt 0:00:00][%mdl 4096] Endgame KRB-KRN} Ra1+ {[%emt 0:00:00]} 41. Kd2 {[%emt 0:04:22]} Rd1+ {[%emt 0:11:45]} 42. Kc3 {[%emt 0:00:12]} Re1 {[%emt 0:00:42]} 43. Nc6 {[%emt 0:08:28]} Rb1 {[%emt 0:00:41]} 44. Rb4 {[%emt 0:01:08]} Rxb4 {[%emt 0:03:01]} (44... Ra1 45. Rh4 Bg6) 45. Kxb4 {[%emt 0:01:19] KB-KN} Ke8 {[%emt 0:04:03]} 46. Kc3 {[%emt 0:01:08]} Kf8 {[%emt 0:00:16]} 47. Nd4 {[%emt 0:02:01]} Ke7 {[%emt 0:01:52]} 48. Kd3 {[%emt 0:00:54]} Be8 {[%emt 0:00:14]} 49. Ke3 {[%emt 0:00:26] Black must now prevent Kf4.} Bd7 {[%emt 0:00:32]} 50. Kf4 {[%emt 0:00:17]} Kf7 {[%emt 0:00:05]} 51. Kg5 {[%emt 0:00:37]} Kg7 {[%emt 0:00:07]} 52. g4 {[%emt 0:00:44]} Bc8 {[%emt 0:00:06]} 53. f4 {[%emt 0:00:16][%cal Bf2f4,Bf4f5][%mdl 32] Threatening mate with f5.} Bd7 {[%emt 0:00:05]} 54. f5 {[%emt 0:00:20] Weighted Error Value: White=0.07 (flawless) /Black=0.39} 1-0

[Event "Hungarian Youth-ch U18 2022"]
[Site "Eger"]
[Date "2022.07.30"]
[Round "8.2"]
[White "Forgacs, Attila Jr."]
[Black "Baski, Barnabas"]
[Result "1/2-1/2"]
[ECO "C99"]
[WhiteElo "2215"]
[BlackElo "2142"]
[Annotator "TA"]
[PlyCount "72"]
[EventDate "2022.07.21"]
[EventType "tourn"]
[EventCountry "HUN"]
[SourceTitle "playchess.com"]
[Source "ChessBase"]
[SourceQuality "1"]
[TimeControl "40/5400+30:1800+30"]

{[%evp 33,72,46,36,20,32,13,20,18,25,0,0,0,19,0,35,18,0,0,0,0,0,-184,25,37,89,75,85,37,27,32,33,31,48,41,27,25,31,29,26,8,12]} 1. e4 {[%emt 0:00:33]} e5 {[%emt 0:00:36]} 2. Nf3 {[%emt 0:00:05]} Nc6 {[%emt 0:00:07]} 3. Bb5 {[%emt 0:00:04][%cal Bf1b5,Bb5a4,Ba4b3][%mdl 32]} a6 {[%emt 0:00:12]} 4. Ba4 {[%emt 0:00:03]} Nf6 {[%emt 0:00:10]} 5. O-O {[%emt 0:00:07]} Be7 {[%emt 0:00:11]} 6. Re1 {[%emt 0:00:14]} b5 {[%emt 0:00:26]} 7. Bb3 {[%emt 0:00:04]} d6 {[%emt 0:00:20]} 8. c3 {[%emt 0:00:15]} O-O {[%emt 0:00:27]} 9. h3 {[%emt 0:00:13]} Na5 {[%emt 0:00:24]} 10. Bc2 {[%emt 0:00:06]} c5 {[%emt 0:00:15]} 11. d4 {[%emt 0:00:13]} Qc7 {[%emt 0:00:30]} 12. Nbd2 {[%emt 0:00:43]} cxd4 {[%emt 0:00:29]} 13. cxd4 {[%emt 0:00:10]} Nc6 {[%emt 0:00:18]} 14. Nb3 {[%emt 0:00:22]} a5 {[%emt 0:00:29][%cal Ba6a5,Ba5a4][%mdl 32]} 15. Be3 {[%emt 0:00:21]} a4 {[%emt 0:00:24]} 16. Nbd2 {[%emt 0:00:16]} Bd7 {[%emt 0:00:24]} 17. Rc1 {[%emt 0:01:37] 17.Rc1 has become a bit dusty these days.} Qb7 {[%emt 0:00:34]} 18. Bb1 {[%emt 0:03:17] C99: Closed Ruy Lopez: Chigorin Defence: 11 d4 Qc7 12 Nbd2 cxd4.} Rfc8 {[%emt 0:05:30]} 19. a3 {[%emt 0:05:13]} Bd8 {[%emt 0:10:31]} 20. Qe2 {[%emt 0:04:04]} Ba5 {[%emt 0:16:25] [#]} 21. d5 $146 {[%emt 0:06:14]} ({Predecessor:} 21. Red1 h6 22. Bd3 Rc7 23. Nf1 Bb6 24. dxe5 Nxe5 25. Rxc7 Bxc7 26. Nxe5 dxe5 27. Qf3 {½-½ (40) Dauga,Z (2507)-Hofstetter,H (2407) ICCF email 2009}) 21... Ne7 {[%emt 0:09:20]} 22. Nh4 {[%emt 0:07:02]} Kh8 {[%emt 0:05:16]} 23. f4 {[%emt 0:04:13]} Ne8 {[%emt 0:03:58]} 24. fxe5 {[%emt 0:04:56]} dxe5 {[%emt 0:01:00]} 25. Qh5 {[%emt 0:03:09] Rxc8 is the strong threat.} f6 {[%emt 0:04:49]} 26. Qf7 {[%emt 0:03:28]} Ng8 {[%emt 0:02:02]} 27. Nf5 $2 {[%emt 0:04:36] [#] Against Nd6} (27. Rxc8 $11 {and White is okay.} Rxc8 28. Qh5 (28. Nf5 $2 g6 $19)) 27... Bb6 $2 {[%emt 0:05:24]} (27... g6 $1 $19 {[%cal Rg6f5]} 28. Ne7 Nd6 29. Nxg6+ hxg6 30. Qxg6 Be8) 28. Rxc8 {[%emt 0:06:52] Really sharp!} (28. Ba2 {is interesting.} Bxe3+ 29. Kh1 Rxc1 30. Rxc1 Bc8 31. Qxb7 Bxb7 32. Nxe3 Bc8 33. Kg1) 28... Bxc8 {[%emt 0:07:20]} (28... Bxe3+ $14 29. Rxe3 Qxc8) 29. Qxb7 $40 {[%emt 0:16:22][%mdl 128] White wants a kill. White is much more active.} ({Much worse is} 29. Qxe8 Bxf5 30. Qh5 Bxe3+ 31. Rxe3 Bd7 $11) 29... Bxe3+ {[%emt 0:00:22]} 30. Rxe3 {[%emt 0:01:03]} ({White should try} 30. Nxe3 $16 Bxb7 31. Rc1) 30... Bxb7 $14 {[%emt 0:00:06]} 31. Rc3 {[%emt 0:00:57]} g6 {[%emt 0:07:55]} 32. Ne3 {[%emt 0:00:34]} Rc8 {[%emt 0:00:16]} 33. Rxc8 {[%emt 0:01:23]} Bxc8 {[%emt 0:00:01]} 34. b3 {[%emt 0:01:25]} axb3 {[%emt 0:00:31]} 35. Nxb3 {[%emt 0:00:08]} Nd6 {[%emt 0:01:18]} 36. g4 {[%emt 0:03:21] Prevents f5.} Ne7 {[%emt 0:02:57] Weighted Error Value: White=0.27 (precise) /Black=0.33} 1/2-1/2

[Event "Hungarian Youth-ch U18 2022"]
[Site "Eger"]
[Date "2022.07.30"]
[Round "8.3"]
[White "Karacsonyi, Gellert"]
[Black "Daroczi, Donat"]
[Result "1-0"]
[ECO "D02"]
[WhiteElo "2338"]
[BlackElo "2163"]
[Annotator "TA"]
[PlyCount "89"]
[EventDate "2022.07.21"]
[EventType "tourn"]
[EventCountry "HUN"]
[SourceTitle "playchess.com"]
[Source "ChessBase"]
[SourceQuality "1"]
[TimeControl "40/5400+30:1800+30"]

{[%evp 12,89,6,0,25,16,20,8,8,0,9,10,0,-13,5,0,17,15,0,0,0,-7,0,-1,39,35,178,129,202,195,191,192,198,168,194,0,0,0,355,244,946,132,248,183,201,0,215,0,160,0,0,0,36,48,94,70,191,197,185,177,227,206,225,230,225,213,202,175,387,378,29994,29995,29995,29984,29989,29990,29997,29998,29998,29999]} 1. d4 {[%emt 0:00:33]} d5 {[%emt 0:02:29]} 2. Nf3 {[%emt 0:00:12]} Nf6 {[%emt 0:02:36]} 3. Bf4 {[%emt 0:00:13]} c5 {[%emt 0:00:27]} 4. e3 {[%emt 0:00:33]} Nc6 {[%emt 0:01:34]} 5. Nbd2 {[%emt 0:00:37]} e6 {[%emt 0:03:42]} 6. c3 {[%emt 0:00:43]} Bd6 {[%emt 0:01:12] 6...Nh5 is a critical line.} 7. Bg3 {[%emt 0:07:07]} a6 {[%emt 0:02:40] D02: 1 d4 d5 2 Nf3 sidelines, including 2...Nf6 3 g3 and 2...Nf6 3 Bf4.} 8. Bd3 {[%emt 0:02:33]} O-O {[%emt 0:01:01]} 9. Ne5 {[%emt 0:08:32]} Qc7 {[%emt 0:02:06][%cal Rc6e5] The position is equal.} 10. f4 {[%emt 0:03:26]} Nd7 {[%emt 0:07:08]} 11. O-O {[%emt 0:11:05]} f5 {[%emt 0:02:40]} 12. Kh1 {[%emt 0:00:27]} Nf6 {[%emt 0:04:20]} 13. Bh4 {[%emt 0:01:49] [#]} c4 $146 ({Predecessor:} 13... Ne4 14. Nxe4 dxe4 15. Bc2 b5 16. a4 Bb7 17. Qe2 bxa4 18. Qc4 Rfe8 19. Bxa4 Bf8 {1-0 (57) Schindler,S (2260)-Graefe,C (1889) Berlin 2009}) 14. Bc2 {[%emt 0:00:52]} Ne4 {[%emt 0:14:53]} 15. Ndf3 {[%emt 0:04:12]} b5 {[%emt 0:07:08]} 16. a3 {[%emt 0:08:40]} a5 {[%emt 0:00:45]} 17. Rg1 {[%emt 0:03:28]} Bd7 {[%emt 0:05:44]} 18. g4 {[%emt 0:03:35]} b4 {[%emt 0:03:32]} ({Black should play} 18... Rae8 $14) 19. axb4 {[%emt 0:04:18]} (19. gxf5 $18 {Strongly threatening Bxe4.} exf5 20. axb4) 19... axb4 {[%emt 0:00:01]} (19... Kh8 $16 20. gxf5 exf5) 20. Rxa8 $18 {[%emt 0:00:11]} Rxa8 {[%emt 0:00:01]} 21. gxf5 {[%emt 0:00:45]} exf5 {[%emt 0:00:02]} 22. Bxe4 {[%emt 0:01:25]} fxe4 {[%emt 0:03:16]} 23. Bf6 $2 {[%emt 0:04:10]} (23. Ng5 $1 $18 {[%cal Rg5h7] Black must now prevent Nxh7!} Bf5 24. Ngf7) 23... Bf8 $11 {[%emt 0:03:04]} 24. Nh4 {[%emt 0:17:18] Threatens to win with Qh5. Pair of Knights!} Bc8 $2 {[%emt 0:08:16][%mdl 8192]} (24... bxc3 $11 {and Black is okay.} 25. bxc3 Qd6) 25. f5 {[%emt 0:02:41]} Qd6 $2 {[%emt 0:03:26]} (25... bxc3 26. Bxg7 (26. bxc3 Qd6 $14) 26... Bxg7) 26. Bg5 $2 {[%emt 0:00:57]} (26. Qh5 $1 $18 {[%cal Rh5f7] White threatens Qf7+ and mate.} Qxf6 27. Ng4 Qxh4 28. Qxh4) 26... Ra7 {[%emt 0:06:02]} (26... Nxe5 $2 27. dxe5 Qc6 28. cxb4) (26... bxc3 $16 27. bxc3 Ra6) 27. Bf4 {[%emt 0:01:07]} Qf6 {[%emt 0:00:57] aiming for ...Nxe5.} 28. Bg5 {[%emt 0:00:09]} Qd6 {[%emt 0:00:01]} 29. Bf4 {[%emt 0:00:18]} Qf6 $1 {[%emt 0:00:01]} 30. Nxc6 {[%emt 0:00:33]} (30. Qh5 $16 {And now Ng4 would win.} Nxe5 31. dxe5) 30... Qxc6 {[%emt 0:00:09]} 31. cxb4 {[%emt 0:03:44]} Rf7 {[%emt 0:02:12]} 32. Qh5 {[%emt 0:01:08]} Be7 {[%emt 0:04:00]} (32... Bxb4 $14 33. Be5 Bf8) 33. Ng6 {[%emt 0:06:13] White is more active.} Bf6 {[%emt 0:04:08] [#]} (33... hxg6 $2 34. fxg6 Bf6 35. gxf7+ $18) (33... Qb7 $1 $14) 34. Ne5 $1 $18 {[%emt 0:00:15]} ({And not} 34. Nh8 Ra7 35. b5 Qd7 $19) 34... Bxe5 {[%emt 0:00:02]} 35. Bxe5 {[%emt 0:00:07]} Bxf5 {[%emt 0:01:45] [#]} (35... Qa4 {keeps fighting.}) 36. Bxg7 $1 {[%emt 0:00:29][%mdl 512]} Bg6 {[%emt 0:02:43]} 37. Be5 $40 {[%emt 0:00:11][%mdl 128] Hoping for Qh3. White goes for the king.} Rf1 {[%emt 0:01:12] ( -> ...Rxg1+)} 38. Qg5 {[%emt 0:04:21]} Rxg1+ {[%emt 0:00:05]} 39. Kxg1 {[%emt 0:00:02][%mdl 4096] Endgame KQB-KQB} Qd7 $2 {[%emt 0:01:07]} (39... Kf7 40. Qd8 Bf5) 40. b5 {[%emt 0:00:00] b6 is the strong threat.} Qxb5 {[%emt 0:00:00] [#]} (40... Qf5 $18 41. Qd8+ Kf7 42. Qxd5+ Ke8 43. Qc6+ (43. Qxc4 Qg4+ 44. Bg3 Qd1+ 45. Qf1 Qxf1+ 46. Kxf1 Kd7 $18) 43... Kf8 44. Qd6+ (44. Qxc4 Qg4+ 45. Bg3 Qd1+ 46. Qf1+ Qxf1+ 47. Kxf1 Be8 $16) 44... Ke8 45. Qb8+ Kf7 46. Qb7+ Ke8) 41. Qe7 $1 {[%emt 0:04:49][%csl Ge5][%cal Re7g7] White mates.} Bf7 {[%emt 0:03:20]} 42. Qd8+ {[%emt 0:00:13]} Be8 {[%emt 0:06:13]} 43. Qf6 {[%emt 0:00:18][%csl Ge5][%cal Rf6g7]} Qd7 {[%emt 0:02:19]} 44. Qh8+ {[%emt 0:00:06]} Kf7 {[%emt 0:00:06]} 45. Qg7+ {[%emt 0:00:04] Weighted Error Value: White=0.38/Black=0.67} 1-0

[Event "Hungarian Youth-ch U18 2022"]
[Site "Eger"]
[Date "2022.07.30"]
[Round "8.4"]
[White "Toth, Nikoletta"]
[Black "Buri, Kata"]
[Result "1-0"]
[ECO "A05"]
[WhiteElo "1914"]
[BlackElo "1730"]
[Annotator "TA"]
[PlyCount "49"]
[EventDate "2022.07.21"]
[EventType "tourn"]
[EventCountry "HUN"]
[SourceTitle "playchess.com"]
[Source "ChessBase"]
[SourceQuality "1"]
[TimeControl "40/5400+30:1800+30"]

{[%evp 11,49,26,29,10,6,0,13,0,7,0,0,2,55,39,78,84,169,153,163,163,255,250,253,257,458,476,466,470,450,448,520,528,427,418,762,744,818,812,795,781]} 1. Nf3 {[%emt 0:00:34]} Nf6 {[%emt 0:04:43]} 2. g3 {[%emt 0:00:05]} c5 {[%emt 0:00:40]} 3. Bg2 {[%emt 0:02:36]} Nc6 {[%emt 0:00:21]} 4. c4 {[%emt 0:00:05]} e5 {[%emt 0:00:42]} 5. Nc3 {[%emt 0:00:16]} g6 {[%emt 0:02:09]} 6. O-O {[%emt 0:00:27]} Bg7 {[%emt 0:00:16]} 7. Ne1 {[%emt 0:11:33][%cal Bf3e1,Be1c2,Bc2e3,Be3d5][%mdl 32] A38: Symmetrical English vs ...g6: 4 Bg2 Bg7 5 Nf3 Nf6.} d6 {[%emt 0:01:05]} 8. Nc2 {[%emt 0:00:06]} Be6 {[%emt 0:00:21]} 9. Ne3 {[%emt 0:00:05] The position is equal.} Qd7 {[%emt 0:01:05]} 10. Ned5 {[%emt 0:05:10] [#]} h5 $146 {[%emt 0:03:21]} ({Predecessor:} 10... Ne7 11. Qb3 Nexd5 12. Nxd5 Rb8 13. a4 O-O 14. Qb5 Qd8 15. b4 Nxd5 16. Bxd5 a6 {0-1 (53) Dondukov,S (2187)-Mikhel,V (2344) Novokuznetsk 2007}) 11. h4 {[%emt 0:09:20]} Ng8 {[%emt 0:04:34]} (11... O-O $11) 12. d3 $14 {[%emt 0:01:06]} Nge7 {[%emt 0:07:08]} 13. Bg5 {[%emt 0:04:21] White is more active.} O-O {[%emt 0:05:29]} (13... Bxd5 $16 14. Nxd5 (14. Bxd5 f6 $11) 14... Nxd5 15. Bxd5 O-O) 14. Nf6+ $18 {[%emt 0:01:45]} Bxf6 {[%emt 0:00:33]} 15. Bxf6 {[%emt 0:00:04]} Nf5 {[%emt 0:04:21]} (15... d5 $142 16. Qd2 Kh7) 16. Qd2 {[%emt 0:01:56]} Kh7 {[%emt 0:09:32]} 17. Ne4 {[%emt 0:02:24][%cal Of6e5] Hoping for Bxe5!} d5 $2 {[%emt 0:03:36] [#]} (17... Qc7 18. Rfb1 Rab8) 18. Ng5+ {[%emt 0:16:51]} Kg8 {[%emt 0:00:46]} 19. cxd5 {[%emt 0:00:05]} Bxd5 {[%emt 0:01:43]} 20. e4 {[%emt 0:00:04]} Nce7 {[%emt 0:06:33]} 21. exd5 {[%emt 0:01:37]} Nxd5 {[%emt 0:00:07]} 22. Ne4 {[%emt 0:00:07][%cal Bg5e4,Be4f6,Bf6h5][%mdl 32]} Qc7 {[%emt 0:02:58]} (22... Qe6 $142 23. Nxc5 Qxf6 24. Bxd5 Rab8) 23. Bh3 {[%emt 0:01:53] White is clearly winning.} Nxf6 {[%emt 0:02:02]} 24. Nxf6+ {[%emt 0:00:31]} Kg7 {[%emt 0:00:07] [#]} 25. Nxh5+ $1 {[%emt 0:01:36][%mdl 512] Weighted Error Value: White=0.03 (flawless) /Black=0.41} 1-0